bitfinex-derivatives/quotes_SOLF0:USTF0_20241005
["timestamp","ask_amount","ask_price","bid_price","bid_amount"]
[1728125128172,0.12502,144.17,144.13,10.61]
[1728125129278,3.59312,144.17,144.13,14.0787]
[1728125129874,0.12502,144.17,144.13,14.0787]
[1728125130068,3.4682,144.16,144.13,14.0787]
[1728125131772,0.12502,144.17,144.13,10.61]
[1728125132075,0.12502,144.17,144.14,3.4686]
[1728125132076,3.59302,144.17,144.14,3.4686]
[1728125132669,0.12502,144.17,144.15,3.4684]
[1728125133372,0.12502,144.17,144.14,10.61]
[1728125133676,10.73502,144.17,144.13,10.61]
[1728125133877,10.61,144.16,144.11,11.656]
[1728125134073,14.0788,144.14,144.1,3.4694]
[1728125134278,14.0788,144.14,144.1,8.1894]
[1728125134975,3.4689,144.13,144.1,8.1894]
[1728125136179,3.4691,144.12,144.1,4.72]
[1728125136375,3.4691,144.12,144.09,10.61]
[1728125137286,3.4691,144.12,144.08,14.0799]
[1728125137475,10.61,144.11,144.04,8.2378]
[1728125137671,10.61,144.1,144.06,4.72]
[1728125138074,3.4699,144.09,144.06,4.72]
[1728125140179,3.4699,144.09,144.05,3.59562]
[1728125141078,7.61099381,144.13,144.05,0.12502]
[1728125141079,3.4706,144.06,144.05,0.12502]
[1728125141290,14.0806,144.06,144.05,0.12502]
[1728125142372,3.4703,144.07,144.05,0.12502]
[1728125146185,3.4694,144.11,144.06,3.4704]
[1728125146386,7.71843235,144.13,144.06,3.4704]
[1728125146387,10.61,144.1,144.06,3.4704]
[1728125146872,14.0798,144.1,144.06,3.4704]
[1728125147180,10.61,144.09,144.05,3.59572]
[1728125148083,3.4701,144.08,144.05,3.59572]
[1728125149892,14.0799,144.09,144.05,3.59572]
[1728125150183,10.61,144.1,144.05,10.73502]
[1728125150989,10.61,144.1,144.07,3.4703]
[1728125150990,14.0797,144.1,144.07,3.4703]
[1728125151290,14.0797,144.1,144.05,10.73502]
[1728125152188,14.0797,144.1,144.06,3.4705]
[1728125155089,3.4699,144.09,144.06,3.4705]
[1728125157796,14.0797,144.1,144.07,3.4703]
[1728125160088,10.61,144.1,144.05,10.73502]
[1728125160290,3.4698,144.09,144.06,3.4704]
[1728125163587,14.0798,144.09,144.06,3.4704]
[1728125164689,14.0805,144.07,144.05,0.12502]
[1728125165391,3.4706,144.06,144.05,0.12502]
[1728125165597,10.61,144.07,144.05,0.12502]
[1728125165994,14.0805,144.07,144.05,0.12502]
[1728125166892,3.4705,144.07,144.05,0.12502]
[1728125167092,3.4698,144.1,144.06,10.61]
[1728125168092,3.4698,144.1,144.07,3.4701]
[1728125170899,3.4699,144.09,144.06,3.4705]
[1728125173096,14.0797,144.1,144.05,10.73502]
[1728125173302,14.0797,144.1,144.07,3.4703]
[1728125174992,7.71843235,144.13,144.06,15.33]
[1728125174993,10.61,144.11,144.06,15.33]
[1728125175190,75.02502,144.17,144.09,10.61]
[1728125175191,10.61,144.14,144.09,10.61]
[1728125175395,15.33,144.15,144.1,10.61]
[1728125175795,3.4688,144.14,144.11,3.4692]
[1728125176399,10.61,144.15,144.1,10.61]
[1728125176596,10.61,144.15,144.12,3.469]
[1728125177892,4.84502,144.17,144.09,11.656]
[1728125178097,10.61,144.14,144.1,3.4695]
[1728125178799,14.0788,144.14,144.1,3.4695]
[1728125182410,3.4693,144.12,144.09,4.72]
[1728125182607,10.61,144.1,144.06,4.72]
[1728125182909,10.61,144.1,144.05,15.45502]
[1728125184109,3.47,144.09,144.06,3.4705]
[1728125184909,14.0796,144.1,144.06,14.0805]
[1728125186004,3.4691,144.12,144.08,10.61]
[1728125186608,3.4689,144.13,144.09,14.0796]
[1728125186806,3.4689,144.13,144.09,10.61]
[1728125187705,3.4689,144.13,144.1,3.4695]
[1728125189712,3.4689,144.13,144.09,10.61]
[1728125189915,3.4689,144.13,144.09,14.0797]
[1728125191320,10.61,144.12,144.08,15.33]
[1728125191507,10.61,144.11,144.08,4.72]
[1728125191818,10.61,144.11,144.07,3.4702]
[1728125193008,3.4697,144.1,144.07,3.4702]
[1728125197214,3.4695,144.11,144.08,14.08]
[1728125197716,10.61,144.12,144.08,14.08]
[1728125197917,14.0792,144.12,144.09,3.4698]
[1728125198810,10.61,144.14,144.09,10.61]
[1728125199007,3.4687,144.14,144.11,3.4693]
[1728125199518,81.31464722,144.15,144.1,10.61]
[1728125199820,91.92464722,144.15,144.1,10.61]
[1728125201117,3.4686,144.14,144.11,3.4692]
[1728125201319,91.92464722,144.15,144.1,10.61]
[1728125201522,84.78314722,144.15,144.12,3.4689]
[1728125208117,3.4685,144.15,144.12,3.4689]
[1728125211725,10.61,144.16,144.09,11.676]
[1728125211926,3.4686,144.14,144.11,3.4692]
[1728125222225,3.4686,144.14,144.11,14.0792]
[1728125223223,0.12502,144.17,144.13,10.61]
[1728125224233,0.12502,144.17,144.15,10.61]
[1728125225028,3.59312,144.17,144.15,10.61]
[1728125225226,10.73502,144.17,144.12,16.6282]
[1728125225625,3.4687,144.14,144.12,4.72]
[1728125225822,3.4687,144.14,144.11,3.4691]
[1728125232643,14.0785,144.15,144.12,3.469]
[1728125234237,3.4686,144.14,144.11,3.4693]
[1728125236036,10.61,144.13,144.1,4.72]
[1728125236231,10.61,144.12,144.07,10.61]
[1728125236440,10.61,144.12,144.07,15.33]
[1728125238134,10.61,144.12,144.07,14.0802]
[1728125238335,10.61,144.11,144.06,15.33]
[1728125238830,3.47,144.09,144.06,15.33]
[1728125239943,3.4705,144.07,144.05,4.84502]
[1728125240142,10.61,144.08,144.05,4.84502]
[1728125240342,10.61,144.1,144.05,10.73502]
[1728125240545,3.47,144.09,144.05,14.20562]
[1728125243144,10.61,144.08,144.05,0.12502]
[1728125244143,3.4705,144.07,144.05,0.12502]
[1728125245439,3.4706,144.06,144.05,0.12502]
[1728125256655,14.0806,144.06,144.05,0.12502]
[1728125269165,3.4706,144.06,144.05,0.12502]
[1728125269468,14.0806,144.06,144.05,0.12502]
[1728125278767,3.40283077,144.12,144.05,0.12502]
[1728125278967,3.4704,144.07,144.05,0.12502]
[1728125279762,14.0806,144.06,144.05,0.12502]
[1728125282983,3.4719,144.01,143.99,0.12502]
[1728125283168,10.61,144.01,143.99,0.12502]
[1728125283877,14.0818,144.01,143.99,0.12502]
[1728125286168,4.72,144.05,143.99,0.12502]
[1728125286569,10.61,144.02,143.99,0.12502]
[1728125286773,10.61,144.04,143.99,10.73502]
[1728125287068,10.61,144.04,144.0,4.72]
[1728125287270,10.61,144.05,144.0,15.33]
[1728125287983,14.081,144.05,144.01,3.4717]
[1728125288276,10.61,144.04,144.0,6.0438]
[1728125288477,10.61,144.03,144.0,6.0438]
[1728125288677,14.0813,144.03,144.0,1.3238]
[1728125288879,14.0813,144.03,144.0,6.0438]
[1728125289079,3.4717,144.02,143.99,4.84502]
[1728125291184,3.4717,144.02,143.99,0.12502]
[1728125294187,14.0814,144.03,143.99,3.59712]
[1728125296386,3.4715,144.02,143.99,3.59712]
[1728125296885,10.61,144.03,143.99,3.59712]
[1728125298089,3.4715,144.02,143.99,3.59712]
[1728125304391,3.4715,144.02,143.99,0.12502]
[1728125306098,10.61,144.02,143.99,0.12502]
[1728125306302,4.72,144.06,143.99,0.12502]
[1728125306303,14.082,144.0,143.99,0.12502]
[1728125311093,14.0818,144.01,143.99,0.12502]
[1728125313998,3.472,144.0,143.99,0.12502]
[1728125318303,14.082,144.0,143.99,0.12502]
[1728125321296,18.822,144.0,143.99,0.12502]
[1728125321903,3.4729,143.97,143.94,3.4734]
[1728125322104,14.0829,143.97,143.94,3.4734]
[1728125322409,14.0829,143.97,143.93,8.33862]
[1728125324305,14.0829,143.97,143.93,4.86502]
[1728125324607,14.0829,143.97,143.94,3.4734]
[1728125326711,3.4725,143.98,143.95,3.473]
[1728125327002,7.4403,144.02,143.95,10.61]
[1728125327207,10.61,144.01,143.95,10.61]
[1728125327411,3.4723,143.99,143.96,3.4728]
[1728125329203,14.0823,143.99,143.96,3.4728]
[1728125332808,3.4719,144.01,143.96,10.61]
[1728125333009,14.0819,144.01,143.96,15.35]
[1728125333405,14.0819,144.01,143.98,3.4725]
[1728125333604,3.4719,144.01,143.98,3.4725]
[1728125333809,14.0819,144.01,143.98,3.4725]
[1728125340416,10.61,144.01,143.99,3.4722]
[1728125340608,14.0816,144.02,143.99,3.4722]
[1728125346515,10.61,144.01,143.99,3.4722]
[1728125346819,14.082,144.01,143.98,3.4725]
[1728125347924,3.4721,144.0,143.97,3.4726]
[1728125348516,3.4724,143.99,143.96,3.4728]
[1728125355725,3.4724,143.99,143.95,4.72]
[1728125356122,3.4724,143.99,143.95,15.33]
[1728125358023,3.4724,143.99,143.96,3.4728]
[1728125362032,3.4724,143.99,143.97,3.4727]
[1728125363722,3.4724,143.99,143.95,15.33]
[1728125363926,3.4724,143.99,143.96,3.4729]
[1728125368432,3.472,144.0,143.97,3.4727]
[1728125376437,14.0819,144.01,143.98,3.4725]
[1728125377243,10.61,144.01,143.96,10.61]
[1728125378340,14.0818,144.01,143.98,3.4723]
[1728125392958,14.0822,144.0,143.97,8.1926]
[1728125396959,14.0822,144.0,143.97,4.72]
[1728125397256,10.61,143.99,143.95,8.1931]
[1728125397648,4.72,144.04,143.95,4.72]
[1728125397649,3.4727,143.98,143.95,4.72]
[1728125399148,3.4727,143.98,143.95,8.193]
[1728125399349,14.0823,143.99,143.95,4.72]
[1728125399751,14.0823,143.99,143.96,3.4728]
[1728125401060,3.4723,143.99,143.96,3.4728]
[1728125404559,10.61,143.97,143.93,7.06302]
[1728125404755,10.61,143.95,143.93,10.53662]
[1728125405663,10.61,143.95,143.93,3.59862]
[1728125407363,10.61,143.95,143.94,1.17738166]
[1728125408556,14.083,143.96,143.94,1.17738166]
[1728125409064,14.083,143.96,143.93,3.59862]
[1728125409256,14.083,143.96,143.94,1.17738158]
[1728125410667,10.61,143.95,143.94,1.17738158]
[1728125411265,14.0832,143.95,143.93,0.12502]
[1728125411457,10.61,143.94,143.93,0.12502]
[1728125412371,14.0834,143.94,143.93,0.12502]
[1728125413369,14.0834,143.94,143.91,3.4741]
[1728125413670,10.61,143.92,143.91,3.4741]
[1728125413966,10.61,143.92,143.91,4.65165259]
[1728125414166,10.61,143.92,143.88,0.12518]
[1728125414369,10.61,143.91,143.89,4.65223769]
[1728125414671,10.61,143.91,143.89,3.4745]
[1728125415264,14.0842,143.91,143.88,3.60008]
[1728125415464,14.0842,143.91,143.88,0.12518]
[1728125416867,3.4741,143.92,143.89,3.4746]
[1728125417069,15.33,143.93,143.89,3.4746]
[1728125417271,10.61,143.92,143.88,0.12518]
[1728125417464,3.4743,143.91,143.88,0.12518]
[1728125418469,10.61,143.92,143.88,0.12518]
[1728125418672,14.0841,143.92,143.89,3.4746]
[1728125419262,10.61,143.94,143.89,10.61]
[1728125419568,15.33,143.95,143.91,10.61]
[1728125420262,10.61,143.95,143.92,3.4738]
[1728125420462,1.3092,143.98,143.91,10.61]
[1728125420664,10.61,143.96,143.91,10.61]
[1728125421359,10.61,143.96,143.93,3.4735]
[1728125424972,10.61,143.96,143.94,3.4734]
[1728125430271,10.61,143.96,143.91,10.61]
[1728125430579,81.41744242,143.97,143.92,10.61]
[1728125430775,92.02744242,143.97,143.92,10.61]
[1728125431074,92.02744242,143.97,143.95,3.4732]
[1728125431368,92.02744242,143.97,143.89,2.7116]
[1728125431369,15.33,143.96,143.88,0.12518]
[1728125431576,10.61,143.89,143.88,0.12518]
[1728125432272,14.0847,143.89,143.88,0.12518]
[1728125443694,3.4747,143.89,143.88,0.12518]
[1728125443898,14.0847,143.89,143.88,0.12518]
[1728125452204,3.4743,143.91,143.88,0.12518]
[1728125452402,10.61,143.9,143.88,0.12518]
[1728125454098,10.61,143.91,143.88,0.12518]
[1728125454409,10.61,143.91,143.88,3.59988]
[1728125455303,10.61,143.97,143.91,6.938]
[1728125455609,2.7408,144.02,143.94,10.61]
[1728125455806,10.61,144.01,143.97,3.4727]
[1728125456106,10.61,144.01,143.97,10.61]
[1728125456318,10.61,144.01,143.97,14.0825]
[1728125456807,10.61,144.01,143.97,10.61]
[1728125457708,10.73502,143.99,143.95,4.94]
[1728125458213,10.73502,143.99,143.95,8.4131]
[1728125458708,0.12502,143.99,143.91,3.40356845]
[1728125458910,14.0826,143.98,143.93,3.4737]
[1728125460104,10.61,143.98,143.94,3.4733]
[1728125460716,10.61,143.98,143.95,3.473]
[1728125461217,10.61,143.98,143.95,8.413]
[1728125461518,10.61,143.98,143.95,4.94]
[1728125463411,10.61,143.97,143.95,4.94]
[1728125463818,14.0828,143.97,143.95,4.94]
[1728125468922,3.4731,143.96,143.93,8.4736]
[1728125469122,14.0831,143.96,143.93,5.0]
[1728125470025,14.0831,143.96,143.92,3.4738]
[1728125470223,3.4732,143.95,143.92,8.4738]
[1728125470726,3.4732,143.95,143.92,5.0]
[1728125473328,3.4732,143.95,143.92,8.4739]
[1728125474732,3.4737,143.93,143.89,11.0675]
[1728125475024,14.0837,143.93,143.9,5.0]
[1728125476324,10.61,143.93,143.9,5.0]
[1728125476524,3.4739,143.92,143.9,5.0]
[1728125476930,10.61,143.93,143.9,5.0]
[1728125477133,14.0838,143.93,143.9,5.0]
[1728125479134,14.0838,143.93,143.9,8.4744]
[1728125480234,5.0,143.96,143.92,3.4737]
[1728125480235,10.61,143.95,143.92,3.4737]
[1728125481032,14.0835,143.94,143.91,3.4741]
[1728125488046,10.61,143.94,143.91,3.4741]
[1728125489147,3.4733,143.95,143.91,3.4741]
[1728125490840,3.4733,143.95,143.9,5.0]
[1728125491041,15.61,143.97,143.92,3.4738]
[1728125491248,3.4731,143.96,143.92,3.4738]
[1728125491844,14.0831,143.96,143.93,3.4737]
[1728125492846,3.4731,143.96,143.93,3.4737]
[1728125493150,14.0831,143.96,143.93,3.4737]
[1728125495752,10.61,143.96,143.91,10.61]
[1728125496949,3.473,143.96,143.93,3.4735]
[1728125497149,14.083,143.96,143.93,3.4735]
[1728125498355,14.0832,143.95,143.92,3.4738]
[1728125499959,10.61,143.95,143.91,3.474]
[1728125500151,10.61,143.95,143.9,16.9713]
[1728125500661,4.81033931,143.98,143.9,6.3613]
[1728125500662,14.0835,143.94,143.9,6.3613]
[1728125500844,10.61,143.94,143.9,6.3613]
[1728125501846,10.61,143.94,143.91,3.474]
[1728125502858,14.0835,143.94,143.91,3.474]
[1728125504756,3.4739,143.92,143.9,5.0]
[1728125504953,10.61,143.94,143.9,5.0]
[1728125505358,3.4739,143.93,143.9,5.0]
[1728125506559,3.4739,143.93,143.89,14.0846]
[1728125506755,3.4739,143.93,143.89,19.0646]
[1728125507861,3.4739,143.93,143.9,3.4744]
[1728125509462,10.61,143.92,143.88,10.73518]
[1728125509764,10.61,143.92,143.88,8.57988]
[1728125510469,3.4743,143.91,143.88,8.57988]
[1728125510666,14.0843,143.91,143.88,8.57988]
[1728125511763,14.0843,143.91,143.88,3.59988]
[1728125514069,3.4743,143.91,143.88,3.59988]
[1728125514766,10.61,143.92,143.89,3.4745]
[1728125515268,14.0841,143.92,143.89,3.4745]
[1728125515762,14.0841,143.92,143.88,0.12518]
[1728125515969,14.0841,143.92,143.88,3.59998]
[1728125516664,14.0841,143.92,143.89,3.4746]
[1728125518270,14.0841,143.92,143.88,3.59998]
[1728125518271,3.4742,143.91,143.88,3.59998]
[1728125519565,10.61,143.92,143.88,0.12518]
[1728125519771,14.084,143.92,143.89,3.4746]
[1728125522466,14.084,143.92,143.88,10.73518]
[1728125522773,14.084,143.92,143.88,14.20998]
[1728125524267,10.61,143.92,143.88,14.20998]
[1728125524464,3.4742,143.91,143.88,3.59998]
[1728125524669,10.61,143.91,143.88,0.12518]
[1728125524871,10.61,143.9,143.88,0.12518]
[1728125525066,3.4747,143.89,143.88,0.12518]
[1728125531572,14.0847,143.89,143.88,0.12518]
[1728125544277,4.92,143.91,143.88,0.12518]
[1728125544583,14.0845,143.9,143.88,0.12518]
[1728125548388,3.4747,143.89,143.88,0.12518]
[1728125551585,14.0847,143.89,143.88,0.12518]
[1728125568006,14.0841,143.92,143.88,0.12518]
[1728125568909,14.0841,143.92,143.89,3.4747]
[1728125569208,3.4744,143.91,143.88,0.12518]
[1728125570002,14.0844,143.91,143.88,0.12518]
[1728125571013,14.0844,143.91,143.88,3.60008]
[1728125572309,14.0844,143.91,143.88,0.12518]
[1728125572514,3.4745,143.9,143.88,0.12518]
[1728125577810,10.61,143.91,143.88,0.12518]
[1728125578017,3.4747,143.89,143.88,0.12518]
[1728125580523,14.0847,143.89,143.88,0.12518]
[1728125591328,19.06027225,143.89,143.88,0.12518]
[1728125595528,14.0847,143.89,143.88,0.12518]
[1728125596032,3.4747,143.89,143.88,0.12518]
[1728125596455,10.61,143.9,143.88,0.12518]
[1728125597232,10.61,143.91,143.88,3.59988]
[1728125602435,10.61,143.91,143.89,3.4746]
[1728125604427,4.86,143.94,143.9,3.4744]
[1728125604428,10.61,143.93,143.9,3.4744]
[1728125606138,14.0838,143.93,143.9,3.4744]
[1728125612542,10.61,143.93,143.89,14.0846]
[1728125612743,3.4739,143.92,143.89,14.0846]
[1728125613547,10.61,143.93,143.89,14.0846]
[1728125613739,14.0838,143.93,143.89,14.0846]
[1728125618952,292.0,144.1,143.9,4.84]
[1728125619146,3.4731,143.96,143.93,14.0835]
[1728125619453,3.40789108,143.97,143.93,10.61]
[1728125619849,3.473,143.96,143.93,10.61]
[1728125620444,3.40789108,143.97,143.89,3.53292581]
[1728125620445,3.4738,143.93,143.89,3.4745]
[1728125620845,3.4738,143.93,143.89,10.61]
[1728125622152,3.4738,143.93,143.9,3.4744]
[1728125628853,4.84,143.96,143.91,10.61]
[1728125629161,15.45,143.96,143.91,10.61]
[1728125629344,10.61,143.97,143.92,10.61]
[1728125629550,3.4732,143.95,143.92,14.0837]
[1728125631252,10.61,143.97,143.92,10.61]
[1728125631452,3.473,143.96,143.93,3.4737]
[1728125631649,3.473,143.96,143.92,10.61]
[1728125632051,3.473,143.96,143.92,14.0837]
[1728125632253,3.473,143.96,143.92,10.61]
[1728125633151,3.473,143.96,143.93,3.4737]
[1728125634363,14.0829,143.97,143.93,3.4737]
[1728125635058,3.473,143.96,143.93,3.4737]
[1728125636459,3.4729,143.97,143.93,3.4737]
[1728125636662,10.61,143.97,143.93,3.4737]
[1728125637566,3.473,143.96,143.93,3.4737]
[1728125642964,3.473,143.96,143.93,14.0837]
[1728125646572,3.4728,143.97,143.94,3.4734]
[1728125653271,3.4726,143.98,143.95,14.0832]
[1728125653469,3.4726,143.98,143.95,18.8832]
[1728125653666,0.12502,143.99,143.96,3.4727]
[1728125653871,500.0,143.97,143.96,14.0827]
[1728125656888,497.8398,143.97,143.96,14.0827]
[1728125659987,497.8398,143.97,143.96,3.4727]
[1728125660187,497.8398,143.97,143.96,14.0827]
[1728125664485,497.8398,143.97,143.96,3.4727]
[1728125664689,497.8398,143.97,143.96,14.0827]
[1728125665994,497.8398,143.97,143.96,18.8827]
[1728125666193,497.8398,143.97,143.96,3.4727]
[1728125666395,497.8398,143.97,143.96,4.8]
[1728125667985,501.3125,143.97,143.96,4.8]
[1728125670297,497.8398,143.97,143.96,4.8]
[1728125676003,497.8398,143.97,143.95,14.0832]
[1728125677109,497.8398,143.97,143.95,3.4732]
[1728125677303,497.8398,143.97,143.95,14.0832]
[1728125677504,497.8398,143.97,143.93,14.0835]
[1728125678204,3.473,143.96,143.93,14.0835]
[1728125683400,3.473,143.96,143.93,18.8635]
[1728125684807,497.8398,143.97,143.93,18.8635]
[1728125685007,501.3126,143.97,143.93,18.8635]
[1728125695915,497.8398,143.97,143.95,10.61]
[1728125697013,497.8398,143.97,143.96,3.473]
[1728125702534,497.8398,143.97,143.96,8.253]
[1728125703218,497.8398,143.97,143.96,18.863]
[1728125708937,497.8398,143.97,143.96,8.253]
[1728125709125,497.8398,143.97,143.96,18.863]
[1728125709735,497.8398,143.97,143.96,20.2305]
[1728125710547,411.09956001,143.97,143.96,20.2305]
[1728125713347,326.76956001,143.97,143.96,20.2305]
[1728125713949,326.76956001,143.97,143.96,21.5807]
[1728125716350,242.43956001,143.97,143.96,21.5807]
[1728125717257,242.43956001,143.97,143.96,28.5317]
[1728125717952,240.27936001,143.97,143.96,28.5317]
[1728125718155,238.81726001,143.97,143.96,28.5317]
[1728125718851,219.99726001,143.97,143.96,28.5317]
[1728125719448,135.66726001,143.97,143.96,28.5317]
[1728125721654,116.84726001,143.97,143.96,28.5317]
[1728125722455,32.51726001,143.97,143.96,28.5317]
[1728125724658,13.69726001,143.97,143.96,28.5317]
[1728125725463,0.12502,143.99,143.98,3.4725]
[1728125725661,0.82352,144.05,143.98,10.61]
[1728125725862,0.82352,144.05,144.03,10.61]
[1728125726058,0.82352,144.05,144.03,15.35]
[1728125727749,0.82352,144.05,144.03,4.74]
[1728125728357,4.29432,144.05,144.03,4.74]
[1728125728564,11.43352,144.05,144.03,4.74]
[1728125728752,11.43352,144.05,143.99,14.082]
[1728125728753,10.61,144.04,143.99,14.082]
[1728125728958,10.61,144.02,144.0,4.74]
[1728125729160,10.61,144.02,144.0,2.5804]
[1728125729962,14.0817,144.02,144.0,2.5804]
[1728125731566,3.4717,144.02,144.0,2.5804]
[1728125732165,13.2383,144.04,144.0,2.5804]
[1728125732369,3.4714,144.03,144.0,2.5804]
[1728125735471,14.0814,144.03,144.0,2.5804]
[1728125752981,10.61,144.03,143.97,14.0825]
[1728125753183,10.61,144.03,143.98,4.74]
[1728125753391,10.61,144.0,143.96,4.74]
[1728125754991,3.4724,143.99,143.96,8.213]
[1728125757090,3.4724,143.99,143.96,4.74]
[1728125757295,3.4725,143.98,143.94,10.61]
[1728125757487,10.61,143.97,143.94,4.74]
[1728125757689,10.61,143.97,143.93,14.20862]
[1728125757990,10.61,143.97,143.94,4.74]
[1728125758196,14.0828,143.97,143.94,4.74]
[1728125759100,10.61,143.97,143.94,8.2134]
[1728125761594,14.0829,143.97,143.93,3.59872]
[1728125761800,14.0829,143.97,143.93,8.33872]
[1728125765610,10.61,143.96,143.93,0.12502]
[1728125765802,14.083,143.96,143.93,4.86502]
[1728125766697,3.4732,143.95,143.93,4.86502]
[1728125767301,10.61,143.96,143.93,4.86502]
[1728125767606,14.0831,143.96,143.93,4.86502]
[1728125769107,10.61,143.96,143.93,4.86502]
[1728125769306,14.0831,143.96,143.93,4.86502]
[1728125769495,3.4731,143.96,143.93,4.86502]
[1728125770104,14.0828,143.97,143.93,8.33872]
[1728125771007,14.0828,143.97,143.93,3.59872]
[1728125772996,10.61,143.96,143.93,3.59872]
[1728125773415,14.083,143.96,143.93,3.59872]
[1728125775414,10.61,143.94,143.93,0.12502]
[1728125779116,14.0834,143.94,143.93,0.12502]
[1728125788111,10.61,143.94,143.93,0.12502]
[1728125791819,3.473,143.96,143.93,0.12502]
[1728125792023,10.61,143.95,143.93,3.59872]
[1728125792425,10.61,143.95,143.93,0.12502]
[1728125796322,10.61,143.95,143.93,3.59872]
[1728125798334,67.9067825,143.99,143.93,0.12502]
[1728125798625,78.5167825,143.99,143.93,10.73502]
[1728125798825,78.5167825,143.99,143.96,3.4728]
[1728125800231,81.9890825,143.99,143.96,3.4728]
[1728125803339,78.5167825,143.99,143.95,4.74]
[1728125804234,78.5167825,143.99,143.97,3.4726]
[1728125805336,81.9890825,143.99,143.96,3.4729]
[1728125806541,78.5167825,143.99,143.96,3.4729]
[1728125807233,78.5167825,143.99,143.97,3.4727]
[1728125810837,67.9067825,143.99,143.97,3.4727]
[1728125813139,167.9067825,143.99,143.97,3.4727]
[1728125816545,167.9067825,143.99,143.96,3.4729]
[1728125819347,171.3790825,143.99,143.96,3.4729]
[1728125820349,181.9890825,143.99,143.96,3.4729]
[1728125820557,181.9890825,143.99,143.95,4.74]
[1728125820558,14.0826,143.98,143.95,4.74]
[1728125820758,10.61,143.98,143.94,4.74]
[1728125821159,14.0827,143.98,143.94,8.2134]
[1728125824157,3.4727,143.97,143.94,8.2134]
[1728125824454,3.4727,143.97,143.93,10.73502]
[1728125824455,10.61,143.96,143.93,3.59862]
[1728125824758,14.083,143.96,143.93,4.86502]
[1728125825451,10.61,143.94,143.93,0.12502]
[1728125827755,3.4729,143.97,143.93,0.12502]
[1728125828062,10.61,143.96,143.93,0.12502]
[1728125829060,10.61,143.96,143.93,3.59852]
[1728125829955,14.0829,143.97,143.93,3.59852]
[1728125830160,15.5119,143.98,143.94,3.4733]
[1728125831760,14.0825,143.98,143.94,3.4733]
[1728125832252,10.61,143.98,143.93,0.12502]
[1728125832558,10.61,143.98,143.95,3.473]
[1728125832962,178.5167825,143.99,143.96,3.4729]
[1728125834060,181.9889825,143.99,143.96,3.4729]
[1728125836764,10.61,143.98,143.96,3.4729]
[1728125838459,10.61,143.98,143.94,10.61]
[1728125838652,10.61,143.98,143.95,3.4731]
[1728125848262,14.0825,143.98,143.94,3.4734]
[1728125848467,10.61,143.96,143.94,3.4734]
[1728125848964,10.61,143.95,143.93,0.12502]
[1728125849669,10.61,143.94,143.93,0.12502]
[1728125851268,14.0834,143.94,143.93,0.12502]
[1728125851968,10.61,143.94,143.88,0.12518]
[1728125852170,10.61,143.91,143.88,3.59998]
[1728125853066,10.61,143.92,143.89,3.4746]
[1728125853970,14.0839,143.92,143.88,3.59998]
[1728125854765,10.61,143.9,143.88,0.12518]
[1728125859265,10.61,143.9,143.88,3.60008]